bitfinex/quotes_ETHUSD_20220113
["timestamp","ask_amount","ask_price","bid_price","bid_amount"]
[1642110950545,1.57401952,3274.5,3274.0,0.7635]
[1642110950824,0.04716827,3274.3,3274.0,0.7635]
[1642110951207,0.00113685,3274.2,3274.0,0.7635]
[1642110952014,0.045463,3274.1,3274.0,0.7635]
[1642110955645,0.045463,3274.1,3273.9,0.00795792]
[1642110955843,0.045463,3274.0,3273.9,0.00795792]
[1642110957245,1.57401952,3274.1,3273.9,0.00795792]
[1642110957443,0.045463,3274.0,3273.9,0.00795792]
[1642110957642,1.57401952,3274.1,3273.9,0.00795792]
[1642110957643,0.11948252,3274.1,3273.9,0.00795792]
[1642110957843,0.88310682,3274.1,3273.9,0.00795792]
[1642110958492,0.7636243,3274.1,3273.9,0.00795792]
[1642110962043,2.37405899,3274.0,3273.9,0.00795792]
[1642110962444,5.82405899,3274.0,3273.9,0.00795792]
[1642110962643,5.95507799,3274.0,3273.9,0.00795792]
[1642110963445,2.50507799,3274.0,3273.9,0.00795792]
[1642110964647,0.1221,3274.0,3273.9,0.00795792]
[1642110964850,2.47652441,3274.0,3273.9,0.00795792]
[1642110970647,3.29638068,3274.0,3273.9,0.00795792]
[1642110974392,11.69638068,3274.0,3273.9,0.00795792]
[1642110974798,15.30590318,3274.0,3273.9,0.00795792]
[1642110975793,13.73638068,3274.0,3273.9,0.00795792]
[1642110976194,16.87917382,3274.0,3273.9,0.00795792]
[1642110978239,13.73638068,3274.0,3273.9,0.00795792]
[1642110978939,13.43638068,3274.0,3273.9,0.00795792]
[1642110979339,13.73638068,3274.0,3273.9,0.00795792]
[1642110979741,13.73638068,3274.0,3273.9,0.00139263]
[1642110979944,5.28638068,3274.0,3273.9,0.00139263]
[1642110980141,8.83638068,3274.0,3273.9,0.00139263]
[1642110981293,5.28638068,3274.0,3273.9,0.00139263]
[1642110982593,5.03638068,3274.0,3273.9,0.00139263]
[1642110982996,2.98195627,3274.0,3273.9,0.00139263]
[1642110983197,11.90645627,3274.0,3273.9,0.00139263]
[1642110983395,11.90645627,3274.0,3272.9,1.74753674]
[1642110983396,0.7639304,3273.5,3272.9,1.74753674]
[1642110983596,0.76402,3273.2,3272.9,1.74753674]
[1642110983794,0.76402,3273.2,3273.0,0.00568424]
[1642110984456,0.7640105,3273.1,3273.0,0.00568424]
[1642110984844,6.88386677,3273.1,3273.0,0.00568424]
[1642110985244,9.31312225,3273.1,3273.0,0.00568424]
[1642110985647,9.75312225,3273.1,3273.0,0.00568424]
[1642110986347,5.21408,3273.0,3272.9,0.00625266]
[1642110986548,8.64811991,3273.0,3272.9,0.00625266]
[1642110986749,8.77031991,3273.0,3272.9,0.00625266]
[1642110986949,8.77031991,3273.0,3272.2,0.01023162]
[1642110986950,0.7640886,3272.7,3272.2,0.01023162]
[1642110987148,0.7641,3272.6,3272.1,0.01080005]
[1642110987448,0.7641,3272.6,3272.0,0.01136847]
[1642110987648,1.0641,3272.6,3272.0,0.01136847]
[1642110988047,0.81985627,3272.5,3272.2,1.66318632]
[1642110988302,1.5281979,3272.4,3272.2,1.66318632]
[1642110988504,0.7640979,3272.4,3272.3,0.0096632]
[1642110989702,0.7640979,3272.4,3272.2,0.13243162]
[1642110989901,0.7640979,3272.4,3272.3,0.0096632]
[1642110990301,1.58395417,3272.4,3272.3,1.67284952]
[1642110992147,1.58395417,3272.4,3272.3,0.0096632]
[1642110993148,0.81985627,3272.4,3272.3,1.67284952]
[1642110993547,0.81985627,3272.4,3272.3,1.97284952]
[1642110994147,0.81985627,3272.4,3272.3,7.99817686]
[1642110994347,0.81985627,3272.4,3272.3,5.47284952]
[1642110994746,1.1555,3272.8,3272.3,3.8096632]
[1642110994747,0.81985627,3272.7,3272.3,3.8096632]
[1642110994947,0.81985627,3272.7,3272.5,0.806569]
[1642110995346,0.81985627,3272.7,3272.6,0.00795793]
[1642110996000,0.81985627,3272.7,3272.6,1.67114425]
[1642110997599,0.81985627,3273.0,3272.6,1.67114425]
[1642110997801,0.81985627,3273.0,3272.7,0.76381]
[1642110998000,0.81985627,3273.0,3272.7,0.77119951]
[1642110998201,0.81985627,3273.0,3272.8,0.00682108]
[1642110999003,0.81985627,3273.0,3272.9,1.66318632]
[1642110999450,0.81985627,3273.0,3272.9,1.66943898]
[1642110999844,1.2348,3273.2,3272.9,0.00625266]
[1642111000044,1.2348,3273.2,3272.9,0.77009266]
[1642111000244,1.70589587,3273.3,3272.9,0.77009266]
[1642111001750,0.81985627,3273.2,3273.0,1.66318632]
[1642111002148,0.81985627,3273.2,3273.1,0.00511581]
[1642111005697,0.81985627,3273.2,3273.1,1.69123048]
[1642111015950,1.11985627,3273.2,3273.1,1.69123048]
[1642111016552,2.68879389,3273.2,3273.1,1.69123048]
[1642111018394,1.11985627,3273.2,3273.1,1.69123048]
[1642111018596,0.81985627,3273.2,3273.1,1.69123048]
[1642111019400,2.39422562,3273.2,3273.1,1.69123048]
[1642111021099,0.81985627,3273.2,3273.1,0.00511581]
[1642111021498,0.81985627,3273.2,3272.7,0.77131951]
[1642111021699,0.7639248,3273.1,3272.7,0.77131951]
[1642111021950,0.7639248,3273.1,3272.8,0.00682108]
[1642111022547,0.81985627,3273.0,3272.8,1.69325434]
[1642111022744,1.58379477,3273.0,3272.8,1.69325434]
[1642111022944,1.58379477,3273.0,3272.9,0.00625266]
[1642111023146,0.7639385,3273.0,3272.9,0.00625266]
[1642111023544,0.7639385,3273.0,3272.6,0.00795793]
[1642111023745,3.1582136,3273.1,3272.6,0.00795793]
[1642111023746,1.5280435,3272.9,3272.6,0.00795793]
[1642111025347,0.76403,3272.8,3272.6,0.00795793]
[1642111025547,1.58388627,3272.8,3272.6,0.00795793]
[1642111026696,0.81985627,3272.8,3272.6,0.00795793]
[1642111026894,0.81985627,3272.7,3272.6,0.00795793]
[1642111027896,0.81985627,3272.8,3272.6,0.00795793]
[1642111028297,0.81985627,3272.7,3272.6,0.00795793]
[1642111029553,0.81985627,3272.8,3272.6,0.00795793]
[1642111030952,0.81985627,3272.8,3272.6,0.77192793]
[1642111031359,0.81985627,3272.8,3272.7,0.00738951]
[1642111039352,0.81985627,3272.8,3272.7,1.70302112]
[1642111039952,0.81985627,3272.8,3272.7,0.00738951]
[1642111040354,0.81985627,3272.8,3272.7,0.00129251]
[1642111040551,0.81985627,3272.8,3272.7,1.69692412]
[1642111044949,0.81985627,3272.8,3272.7,1.64692412]
[1642111047352,0.7639743,3272.7,3272.3,0.038189]
[1642111047758,0.81985627,3272.8,3272.5,0.045463]
[1642111048904,0.81985627,3272.8,3272.6,0.76397]
[1642111048905,1.58383057,3272.8,3272.6,0.76397]
[1642111050006,0.7639743,3272.8,3272.6,0.76397]
[1642111053163,1.5280435,3272.9,3272.6,0.76397]
[1642111053164,1.57440733,3273.1,3272.7,0.167663]
[1642111053369,1.57440733,3273.1,3273.0,0.045463]
[1642111054164,2.36171826,3273.4,3273.0,0.045463]
[1642111054365,1.69660733,3273.6,3273.3,0.045463]
[1642111054566,1.69660733,3273.6,3273.5,0.045463]
[1642111054963,1.70172315,3273.6,3273.5,0.045463]
[1642111055803,0.12731582,3273.6,3273.5,0.045463]
[1642111056002,0.00511582,3273.6,3273.5,0.045463]
[1642111059949,0.00511582,3273.6,3273.4,0.76371]
[1642111060250,0.7637416,3273.6,3273.5,0.045156]
[1642111060450,1.69650733,3273.8,3273.5,0.045156]
[1642111060451,1.57440733,3273.8,3273.5,0.045156]
[1642111060651,1.57440733,3273.8,3273.7,0.045463]
[1642111060851,2.36171826,3274.0,3273.7,0.045463]
[1642111061051,2.36171826,3274.0,3273.9,0.045463]
[1642111061453,3.14895768,3274.2,3274.0,3.25]
[1642111061655,2.02913735,3274.5,3274.1,1.485463]
[1642111061851,3.735e-05,3274.5,3274.4,0.045463]
[1642111062053,3.735e-05,3274.7,3274.4,18.107563]
[1642111062251,3.735e-05,3274.7,3274.6,0.045463]
[1642111062450,3.735e-05,3274.7,3274.6,0.167563]
[1642111063052,3.735e-05,3274.7,3274.6,0.930863]
[1642111063300,3.735e-05,3274.7,3274.6,0.167563]
[1642111063502,3.735e-05,3274.7,3274.6,0.045463]
[1642111063700,3.735e-05,3274.7,3274.3,0.1221]
[1642111063701,0.12213735,3274.7,3274.3,0.1221]
[1642111064102,1.33805522,3274.6,3274.3,0.1221]
[1642111064409,0.12494212,3274.5,3274.3,0.1221]
[1642111064801,3.30227369,3274.4,3274.3,0.1221]
[1642111065001,3.42437369,3274.4,3274.3,0.1221]
[1642111065802,3.8889819,3274.4,3274.3,0.1221]
[1642111067349,0.5889819,3274.4,3274.3,0.1221]
[1642111071803,0.12437369,3274.4,3274.3,0.1221]
[1642111072805,0.92637369,3274.4,3274.3,0.1221]
[1642111073006,1.36637369,3274.4,3273.4,1.52734]
[1642111073207,0.7637776,3273.8,3273.2,3.122689]
[1642111073409,0.7637776,3273.8,3273.5,0.00284212]
[1642111073610,0.7637776,3273.8,3273.3,0.04216796]
[1642111073809,0.7637776,3273.8,3273.3,0.038189]
[1642111074010,0.7637776,3273.8,3273.4,0.00341054]
[1642111075249,0.7637776,3273.8,3273.4,0.76716054]
[1642111075450,0.7637776,3273.8,3273.5,0.045463]
[1642111075651,0.7637776,3273.8,3273.5,0.04830512]
[1642111075851,0.7637776,3273.8,3273.6,0.00227369]
[1642111076452,0.47136448,3273.7,3273.6,0.00227369]
[1642111078501,0.42136448,3273.7,3273.6,2.12056935]
[1642111079200,0.42136448,3273.7,3273.6,0.00227369]
[1642111080408,3.02990998,3273.7,3273.6,0.00227369]
[1642111080603,1.28346448,3273.7,3273.6,0.00227369]
[1642111080803,2.28346448,3273.7,3273.3,0.00397896]
[1642111081002,2.4140087,3273.6,3273.3,0.00397896]
[1642111081202,1.37577433,3273.4,3273.3,0.00397896]
[1642111081402,1.37577433,3273.4,3272.8,0.038189]
[1642111081403,4.25,3273.2,3272.5,17.978189]
[1642111081603,2.09042,3273.1,3272.5,17.978189]
[1642111081801,2.09042,3273.1,3272.7,0.00341055]
[1642111082457,2.2923585,3273.0,3272.7,0.00341055]
[1642111082664,9.0,3272.6,3272.2,0.038189]
[1642111082856,9.0,3272.6,3272.0,3.07446425]
[1642111082857,0.5622,3272.5,3272.0,3.07446425]
[1642111083056,2.1622,3272.5,3272.3,0.00227369]
[1642111083456,9.0,3272.1,3271.2,0.09718312]
[1642111083658,0.01259356,3271.4,3270.8,2.98488528]
[1642111083862,9.05796974,3271.3,3270.8,2.98488528]
[1642111084056,9.05796974,3271.3,3270.9,0.00795793]
[1642111084057,1.3,3271.2,3270.9,0.00795793]
[1642111084362,9.0,3270.9,3270.2,0.90218641]
[1642111084556,0.76481,3270.6,3270.2,0.90218641]
[1642111084756,2.03951357,3270.5,3270.1,6.52117927]
[1642111084957,0.16796974,3270.4,3270.1,6.52117927]
[1642111085158,0.5623,3270.3,3270.1,6.52117927]
[1642111085358,8.05,3270.2,3268.9,0.00585545]
[1642111085558,0.7648987,3270.0,3268.9,0.00585545]
[1642111085810,0.44,3269.9,3269.7,0.00341054]
[1642111086105,0.1223,3269.8,3269.7,0.00341054]
[1642111086308,0.44,3269.8,3269.7,0.00341054]
[1642111086707,0.44,3269.8,3269.1,0.00682108]
[1642111086907,0.16796974,3269.7,3269.1,0.00682108]
[1642111087108,0.60796974,3269.7,3269.0,6.05682108]
[1642111087408,0.00284212,3269.6,3268.9,0.47794995]
[1642111087609,0.00284212,3269.6,3269.0,0.1223]
[1642111087811,0.00227369,3269.5,3269.4,4.73727513]
[1642111088009,0.00227369,3269.5,3269.4,4.85957513]
[1642111088407,0.00227369,3269.5,3269.4,6.33388097]
[1642111088807,0.00227369,3269.5,3269.4,4.85957513]
[1642111089308,0.00227369,3269.5,3269.4,0.70957513]
[1642111090148,0.00307369,3269.5,3269.4,0.70957513]
[1642111090353,0.00387369,3269.5,3269.4,0.70957513]
[1642111090951,0.00387369,3269.5,3269.4,4.60957513]
[1642111091549,0.00387369,3269.5,3269.4,4.90957513]
[1642111091749,0.00387369,3269.5,3269.4,0.70957513]
[1642111092050,0.00387369,3269.5,3269.4,1.00957513]
[1642111092250,0.00387369,3269.5,3269.4,1.30957513]
[1642111092550,0.00387369,3269.5,3269.4,0.70957513]
[1642111092750,0.00387369,3269.5,3269.4,1.00957513]
[1642111092953,0.00387369,3269.5,3269.4,7.80957513]
[1642111093210,0.00387369,3269.5,3269.4,11.94769758]
[1642111093409,0.00387369,3269.5,3269.4,15.84339758]
[1642111094012,0.00387369,3269.5,3269.4,12.70527513]
[1642111094314,1.57524392,3271.0,3269.5,9.0]
[1642111094511,2.61542566,3270.9,3270.6,0.51712968]
[1642111094713,0.00795793,3270.9,3270.6,0.51712968]
[1642111095312,0.00795793,3270.9,3270.2,0.3]
[1642111095516,0.00795793,3270.9,3270.4,1.52861]
[1642111095912,0.00795793,3270.9,3270.5,0.3]
[1642111096112,0.00795793,3270.9,3270.4,1.52861]
[1642111096314,0.1222,3270.8,3270.0,0.1222]
[1642111096514,0.1222,3270.8,3270.0,0.31909833]
[1642111096720,0.00682109,3270.7,3270.0,3.32947983]
[1642111096963,0.1223,3270.6,3270.0,3.32947983]
[1642111097152,0.12855266,3270.6,3270.0,3.32947983]
[1642111097352,0.00568424,3270.5,3270.0,3.32947983]
[1642111097552,0.1223,3270.4,3270.0,3.32947983]
[1642111097753,0.12741581,3270.4,3269.6,3.1325815]
[1642111097953,0.00454739,3270.3,3269.6,3.1325815]
[1642111098156,0.1223,3270.2,3269.6,3.1325815]
[1642111098355,0.12627897,3270.2,3269.6,3.1325815]
[1642111098553,0.00341054,3270.1,3269.6,3.1325815]
[1642111098755,0.00341054,3270.1,3269.5,3.1325815]
[1642111098756,0.1223,3270.0,3269.5,3.1325815]
[1642111098955,0.12514212,3270.0,3269.5,3.1325815]
[1642111099154,0.0022737,3269.9,3269.5,3.1325815]
[1642111099353,0.1223,3269.8,3269.5,3.1325815]
[1642111099554,0.00170527,3269.8,3269.5,3.1325815]
[1642111099756,0.00113685,3269.7,3269.5,3.1325815]
[1642111099955,0.12343685,3269.7,3269.3,3.1325815]
[1642111101202,0.12343685,3269.7,3269.1,0.51972938]
[1642111101403,2.62569478,3269.6,3269.1,0.51972938]
[1642111101603,2.62569478,3269.6,3269.2,0.00170527]
[1642111102609,0.12343685,3269.7,3269.2,0.00170527]
[1642111103006,0.12343685,3269.7,3269.1,0.00227369]
[1642111103807,0.00113685,3269.7,3269.1,0.00227369]
[1642111104851,2.62677591,3269.7,3269.1,0.00227369]
[1642111105453,2.62677591,3269.7,3269.2,0.76465]
[1642111105652,0.00113685,3269.7,3269.2,0.76465]
[1642111105852,0.09025288,3269.6,3269.3,0.00113684]
[1642111109206,0.09025288,3269.6,3269.4,0.59149361]
[1642111109507,0.09025288,3269.6,3269.4,0.89149361]
[1642111109704,0.09025288,3269.6,3269.4,0.59149361]
[1642111109905,0.09025288,3269.6,3269.4,0.89149361]
[1642111110109,0.09025288,3269.6,3269.5,1.28069735]
[1642111110908,0.00113685,3269.7,3269.5,1.28069735]
[1642111111954,0.00113685,3269.7,3269.5,2.58069735]
[1642111112149,0.00113685,3269.7,3269.5,2.88069735]
[1642111112350,2.57664242,3270.4,3269.5,2.88069735]
[1642111112550,2.57664242,3270.4,3269.6,0.1223]
[1642111112751,0.00341054,3270.3,3269.8,0.7645]
[1642111113152,0.00284212,3270.2,3269.8,0.7645]
[1642111113550,0.00227369,3270.1,3269.8,0.7645]
[1642111113952,0.00170527,3270.0,3269.8,0.7645]
[1642111114151,0.00170527,3270.0,3269.6,0.76456]
[1642111114352,0.00113685,3269.9,3269.7,0.1223]
[1642111114752,1.57524392,3270.4,3269.7,0.1223]
[1642111115807,0.09060014,3270.0,3269.7,0.1223]
[1642111116204,0.00113685,3269.9,3269.7,0.1223]
[1642111117405,0.00113685,3269.9,3269.6,0.88686]
[1642111120756,0.09171015,3269.9,3269.6,0.88686]
[1642111121359,0.1223,3269.8,3269.6,0.1223]
[1642111121561,0.1223,3269.8,3269.3,1.53018684]
[1642111121956,0.1223,3269.8,3269.4,0.00170527]
[1642111125003,0.1223,3269.8,3269.4,0.76632527]
[1642111125303,0.1223,3269.8,3269.5,0.00113685]
[1642111125504,0.09171015,3269.9,3269.5,0.00113685]
[1642111125903,0.09054646,3269.8,3269.6,0.76458]
[1642111130460,0.09054646,3269.8,3269.4,0.00170527]
[1642111131706,0.09054646,3269.8,3269.6,0.44161811]
[1642111133108,2.62585211,3269.7,3269.6,0.44161811]
[1642111133306,2.62585211,3269.7,3269.6,1.20614811]
[1642111133506,2.62585211,3269.7,3269.4,1.53087527]
[1642111133908,2.62585211,3269.7,3269.5,0.00113685]
[1642111135379,2.62585211,3269.7,3269.5,0.76567685]
[1642111135876,0.09018614,3269.6,3269.5,0.76567685]
[1642111137380,0.09018614,3269.6,3269.5,3.67570587]
[1642111137381,8.614e-05,3269.6,3269.5,3.67570587]
[1642111137581,0.00113685,3269.9,3269.5,3.67570587]
[1642111137582,0.00113685,3269.9,3269.5,4.81066885]
[1642111137782,0.00113685,3269.9,3269.7,0.76438]
[1642111138080,0.00113685,3269.9,3269.8,29.26079861]
[1642111138304,0.00113685,3269.9,3269.8,29.56079861]
[1642111138503,2.36277031,3270.8,3269.9,6.44957771]
[1642111138703,2.36277031,3270.8,3270.1,17.9]
[1642111138904,2.62778122,3270.3,3270.2,3.54360069]
[1642111139106,2.62778122,3270.3,3270.2,5.14360069]
[1642111139304,2.62550753,3270.3,3270.2,5.14360069]
[1642111139507,2.62550753,3270.3,3270.2,20.38658]
[1642111139905,0.72290753,3270.3,3270.2,1.18658]
[1642111140107,0.00568423,3270.9,3270.5,0.465244]
[1642111140308,0.00568423,3270.9,3270.4,0.76434]
[1642111140309,0.00568423,3270.9,3270.4,3.41460853]
[1642111140506,0.00511581,3270.8,3270.5,0.3]
[1642111140907,0.00454739,3270.7,3270.5,0.3]
[1642111141310,0.00397896,3270.6,3270.4,1.37458318]
[1642111141509,0.00397896,3270.6,3270.4,2.90324318]
[1642111141709,0.00341054,3270.5,3270.4,2.90324318]
[1642111141960,0.00341054,3270.5,3270.4,5.79541417]
[1642111142155,0.00341054,3270.5,3270.4,6.79541417]
[1642111142556,0.00341054,3270.5,3270.4,6.99232723]
[1642111142856,0.00341054,3270.5,3270.4,4.40015624]
[1642111143055,0.00341054,3270.5,3270.4,4.52245624]
[1642111146213,0.00341054,3270.5,3270.4,3.91217306]
[1642111146713,0.00341054,3270.5,3270.4,3.78987306]
[1642111147413,0.00341054,3270.5,3270.4,3.59296]
[1642111147814,0.00341054,3270.5,3270.4,1.52866]
[1642111148014,0.00341054,3270.5,3270.3,0.76432]
[1642111148213,0.00341054,3270.5,3270.3,0.96123306]
[1642111148416,0.00284211,3270.4,3270.3,0.96123306]
[1642111149214,0.00284211,3270.4,3270.3,0.76432]
[1642111149860,0.00284211,3270.4,3270.1,3.7922]
[1642111152263,0.1223,3270.3,3270.1,3.7922]
[1642111152666,0.00170527,3270.2,3270.1,3.7922]
[1642111158059,0.00170527,3270.2,3270.1,4.0922]
[1642111158263,0.00170527,3270.2,3270.1,3.7922]
[1642111158860,0.00170527,3270.2,3269.7,0.88689]
[1642111159161,0.00113684,3270.1,3269.7,0.76459]
[1642111159562,0.00284211,3270.4,3269.7,0.76459]
[1642111160161,0.00284211,3270.4,3270.0,0.46830141]
[1642111160364,0.00284211,3270.4,3270.1,0.76442]
[1642111160562,2.62852139,3270.4,3270.1,0.76442]
[1642111161810,0.00284211,3270.4,3270.1,0.76442]
[1642111178014,0.00284211,3270.4,3270.1,1.52886]
[1642111178513,0.00284211,3270.4,3270.1,0.76442]
[1642111183915,2.62852139,3270.4,3270.1,0.76442]
[1642111184810,0.00284211,3270.4,3270.1,0.76442]
[1642111185211,0.00284211,3270.4,3270.1,1.52887]
[1642111185714,0.00284211,3270.4,3270.1,0.76442]
[1642111188061,0.00284211,3270.4,3270.1,1.52888]
[1642111189267,0.00284211,3270.4,3270.1,0.76442]
[1642111189865,2.62567928,3270.7,3270.1,0.76442]
[1642111190264,0.00397896,3270.6,3270.1,0.76442]
[1642111190709,0.00341054,3270.5,3270.1,0.76442]
[1642111190910,2.62908982,3270.5,3270.1,0.76442]
[1642111191211,0.00284211,3270.4,3270.1,0.76442]
[1642111191610,0.00227369,3270.3,3270.1,0.76442]
[1642111191816,0.00227369,3270.3,3270.1,1.52888]
[1642111192009,0.00170527,3270.2,3270.1,1.52888]
[1642111192409,0.00170527,3270.2,3270.1,0.76446]
[1642111194764,0.00170527,3270.2,3270.1,4.97209528]
[1642111194964,0.00170527,3270.2,3270.1,5.09439528]
[1642111195363,0.00170527,3270.2,3270.1,18.78676]
[1642111195563,0.00170527,3270.2,3270.1,20.38676]
[1642111196365,0.00170527,3270.2,3270.1,19.6223]
[1642111196964,0.00170527,3270.2,3270.1,19.81921306]
[1642111197765,0.00170527,3270.2,3270.1,19.51921306]
[1642111199011,0.00170527,3270.2,3270.1,19.81921306]
[1642111202778,0.00170527,3270.2,3270.1,1.91921306]
[1642111203179,0.00170527,3270.2,3270.1,0.31921306]
[1642111203381,0.00170527,3270.2,3270.1,0.19691306]
[1642111204479,0.00170527,3270.2,3270.0,4.897942]
[1642111204683,0.00170527,3270.2,3270.0,3.357642]
[1642111206006,0.1223,3270.8,3270.0,3.357642]
[1642111206208,0.1223,3270.9,3270.3,2.05909509]
[1642111206409,0.00454739,3270.7,3270.3,2.05909509]
[1642111206608,0.00454739,3270.7,3270.3,2.35909509]
[1642111206809,0.00397896,3270.6,3270.3,1.59472509]
[1642111207007,0.00397896,3270.6,3270.3,0.83035509]
[1642111207207,0.00341054,3270.5,3270.3,0.83035509]
[1642111207510,0.1223,3270.9,3270.4,0.7644]
[1642111207909,0.00397896,3270.6,3270.5,0.3]
[1642111208910,0.00397896,3270.6,3270.4,0.7644]
[1642111209457,0.00341054,3270.5,3270.4,0.7644]
[1642111210064,0.00341054,3270.5,3270.4,1.0644]
[1642111211362,0.00341054,3270.5,3270.4,0.7644]
[1642111211961,0.00341054,3270.5,3270.4,1.0644]
[1642111212962,2.62908982,3270.5,3270.4,1.0644]
[1642111214621,2.62908982,3270.5,3270.4,1.79569216]
[1642111214819,2.62908982,3270.5,3270.4,2.52698432]
[1642111217766,2.62908982,3270.5,3270.4,2.97144717]
[1642111218165,2.62908982,3270.5,3270.4,3.73578717]
[1642111219163,2.62908982,3270.5,3270.4,3.29132432]
[1642111219364,2.62908982,3270.5,3270.4,2.52698432]
[1642111221215,1.57524392,3271.2,3270.4,7.70971428]
[1642111221418,1.57524392,3271.2,3271.0,0.045463]
[1642111221613,1.57524392,3271.2,3271.1,0.56842754]
[1642111221813,1.57524392,3271.2,3271.1,1.2997197]
[1642111222012,1.57922288,3271.2,3271.1,2.33101186]
[1642111222213,1.57922288,3271.2,3271.1,1.58478432]
[1642111222415,1.70142288,3271.2,3271.1,1.58478432]
[1642111223017,0.12617896,3271.2,3271.1,1.58478432]
[1642111224565,0.00397896,3271.2,3271.1,1.58478432]
[1642111224864,0.12617896,3271.2,3271.1,1.58478432]
[1642111225162,0.12617896,3271.2,3271.1,1.46258432]
[1642111225963,1.70142288,3271.2,3271.1,1.46258432]
[1642111228067,0.12617896,3271.2,3271.1,1.46258432]
[1642111229313,0.00397896,3271.2,3271.1,1.46258432]
[1642111229513,0.12617896,3271.2,3271.1,1.46258432]
[1642111229715,0.00397896,3271.2,3271.1,1.46258432]
[1642111231516,1.57926385,3271.2,3271.1,1.46258432]
[1642111231716,2.44146385,3271.2,3271.1,1.46258432]
[1642111232167,3.44146385,3271.2,3271.1,1.46258432]
[1642111232367,6.51617896,3271.2,3271.1,1.46258432]
[1642111233269,6.51617896,3271.2,3270.4,0.032733]
[1642111233270,9.0,3271.1,3270.4,0.032733]
[1642111233468,9.0,3271.1,3269.9,0.31911306]
[1642111233469,0.73016974,3271.0,3270.0,0.13448583]
[1642111233672,1.73301186,3271.0,3270.0,0.10175283]
[1642111233870,0.00227369,3270.9,3270.1,0.0022737]
[1642111234070,0.8623,3270.8,3270.1,0.0022737]
[1642111234369,2.79047117,3270.7,3270.1,0.0022737]
[1642111234569,1.5623,3270.6,3270.1,0.0022737]
[1642111234769,1.8623,3270.6,3270.1,0.0022737]
[1642111235372,0.76475,3270.5,3270.1,0.0022737]
[1642111235571,3.41987339,3270.4,3270.1,0.0022737]
[1642111235822,1.57312278,3270.3,3270.1,0.0022737]
[1642111236011,9.62851277,3270.2,3270.1,0.0022737]
[1642111236510,10.62851277,3270.2,3270.1,0.0022737]
[1642111238513,10.50621277,3270.2,3270.1,0.0022737]
[1642111242468,13.13267394,3270.2,3270.1,0.0022737]
[1642111243068,13.25497394,3270.2,3270.1,0.0022737]
[1642111244115,13.13267394,3270.2,3270.1,0.0022737]
[1642111244315,6.63934683,3270.2,3270.1,0.0022737]
[1642111245114,4.06646117,3270.2,3270.1,0.0022737]
[1642111245317,2.62646117,3270.2,3270.1,0.0022737]
[1642111245516,4.19958949,3270.2,3270.1,0.0022737]
[1642111246519,2.62646117,3270.2,3270.1,0.0022737]
[1642111253317,2.62646117,3270.5,3270.1,0.0022737]
[1642111254117,2.62646117,3270.2,3270.1,0.0022737]
[1642111255266,1.57312832,3270.5,3270.1,0.0022737]
[1642111255467,0.1223,3270.4,3270.1,0.0022737]
[1642111256470,0.1223,3270.5,3270.1,0.0022737]
[1642111256767,0.1223,3270.5,3270.0,0.08675953]
[1642111256967,0.00170527,3270.4,3270.0,0.08675953]
[1642111257167,2.62646117,3270.3,3270.0,0.08675953]
[1642111257367,2.62759802,3270.3,3270.0,0.85125953]
[1642111257767,2.62759802,3270.3,3270.0,1.15125953]
[1642111258413,0.00113685,3270.3,3270.0,1.15125953]
[1642111258814,0.00113685,3270.3,3270.2,0.045463]
[1642111260217,0.00113685,3270.3,3270.0,1.15125953]
[1642111260415,0.00113685,3270.3,3270.2,0.036348]
[1642111261622,0.00113685,3270.3,3270.2,17.936348]
[1642111262067,0.00113685,3270.3,3270.2,19.236348]
[1642111263766,0.00113685,3270.3,3270.2,19.43326106]
[1642111269474,0.00113685,3270.3,3270.2,18.43326106]
[1642111269664,0.00113685,3270.3,3270.2,19.43326106]
[1642111270065,0.00113685,3270.3,3270.2,20.81462311]
[1642111276121,0.00113685,3270.3,3270.2,21.11462311]
[1642111276326,2.62646117,3270.9,3270.3,5.4]
[1642111276521,2.62646117,3270.9,3270.8,0.045463]
[1642111277565,3.93589863,3271.4,3270.8,17.945463]
[1642111277766,1.57312832,3271.4,3271.3,0.045463]
[1642111278166,1.57312832,3271.4,3271.1,1.06417]
[1642111278371,1.57312832,3271.4,3271.2,0.044507]
[1642111278567,0.00568424,3271.3,3271.2,0.044507]
[1642111278967,0.00568424,3271.3,3271.1,1.06417]
[1642111279370,0.00511581,3271.2,3271.1,1.06417]
[1642111279572,0.00511581,3271.2,3271.1,0.3]
[1642111279769,0.00511581,3271.2,3271.0,0.332733]
[1642111279970,2.63157698,3271.2,3271.0,0.332733]
[1642111280171,0.00454739,3271.1,3271.0,0.332733]
[1642111281115,2.63100856,3271.1,3271.0,0.332733]
[1642111285363,2.63100856,3271.1,3271.0,0.454933]
[1642111285563,2.63100856,3271.1,3271.0,0.332733]
[1642111287367,2.63100856,3271.1,3271.0,0.3]
[1642111288816,2.63100856,3271.1,3270.9,0.76416]
[1642111289018,2.63100856,3271.1,3270.8,0.76434]
[1642111289218,0.00397897,3271.0,3270.4,3.7305]
[1642111289617,0.00341054,3270.9,3270.4,3.7305]
[1642111290017,0.00284212,3270.8,3270.3,0.19688039]
[1642111290221,0.00284212,3270.8,3270.4,0.76442]
[1642111290419,0.0022737,3270.7,3270.5,0.3]
[1642111290824,0.00170527,3270.6,3270.5,0.3]
[1642111291019,0.00170527,3270.6,3270.4,0.76442]
[1642111291221,0.00170527,3270.6,3270.3,0.76446]
[1642111291422,0.00113685,3270.5,3270.3,0.76446]
[1642111291972,0.0022737,3270.7,3270.3,0.76446]
[1642111292165,2.62873487,3270.7,3270.3,0.76446]
[1642111292367,0.00170527,3270.6,3270.3,1.06446]
[1642111292769,0.00113685,3270.5,3270.3,1.06446]
[1642111293166,0.00170527,3270.6,3270.3,1.06446]
[1642111293566,2.62646117,3270.7,3270.3,1.06446]
[1642111293567,0.00113685,3270.5,3270.3,1.06446]
[1642111293966,0.00170527,3270.6,3270.4,0.04542]
[1642111294167,0.00170527,3270.6,3270.4,0.80982]
[1642111294367,0.00113685,3270.5,3270.4,0.80982]
[1642111295270,0.00113685,3270.5,3270.4,1.93212]
[1642111295468,0.00113685,3270.5,3270.4,0.93212]
[1642111295713,0.00113685,3270.5,3270.4,1.93212]
[1642111297415,0.00113685,3270.5,3270.4,0.93212]
[1642111297615,0.00113685,3270.5,3270.4,1.93212]
[1642111297819,0.00113685,3270.5,3270.4,2.12900039]
[1642111298316,0.00113685,3270.5,3270.4,4.70369192]
[1642111298615,0.00113685,3270.5,3270.4,20.02900039]
[1642111299015,0.00113685,3270.5,3270.4,2.12900039]
[1642111299665,0.00113685,3270.5,3270.4,1.12900039]
[1642111300065,0.00113685,3270.5,3270.4,2.12900039]
[1642111301567,0.00113685,3270.5,3270.4,2.00670039]
[1642111302166,0.00113685,3270.5,3270.4,1.80982]
[1642111302767,0.00113685,3270.5,3270.4,2.00670039]